[Event "Early-Titled-Tuesday-Blitz-May-07-2024"]
[Site "Chess.com"]
[Date "2024.05.07"]
[Round "6"]
[White "RobRam"]
[Black "talaicito"]
[Result "0-1"]
[WhiteElo "2525"]
[BlackElo "2390"]
[TimeControl "180+1"]
[EndTime "9:11:42 PDT"]
[Termination "talaicito won by resignation"]

1. d4 {[%clk 0:03:00.9]} 1... e6 {[%clk 0:02:59.8]} 2. e3 {[%clk 0:03:01.2]}
2... f5 {[%clk 0:03:00.3]} 3. Bd3 {[%clk 0:02:56.8]} 3... Nf6 {[%clk 0:03:00.6]}
4. Nd2 {[%clk 0:02:56.2]} 4... b6 {[%clk 0:02:59.5]} 5. f4 {[%clk 0:02:55.9]}
5... Bb7 {[%clk 0:02:59.7]} 6. Ngf3 {[%clk 0:02:56.4]} 6... Be7 {[%clk
0:02:58.7]} 7. O-O {[%clk 0:02:56.3]} 7... O-O {[%clk 0:02:59.2]} 8. c4 {[%clk
0:02:56]} 8... a5 {[%clk 0:02:59.4]} 9. Qe2 {[%clk 0:02:45]} 9... Na6 {[%clk
0:02:58.5]} 10. e4 {[%clk 0:02:41.9]} 10... fxe4 {[%clk 0:02:51.7]} 11. Nxe4
{[%clk 0:02:41.1]} 11... Nb4 {[%clk 0:02:50.6]} 12. Nxf6+ {[%clk 0:02:35.1]}
12... Bxf6 {[%clk 0:02:49.5]} 13. Be4 {[%clk 0:02:35.7]} 13... d5 {[%clk
0:02:48.6]} 14. Bb1 {[%clk 0:02:28.2]} 14... dxc4 {[%clk 0:02:45.8]} 15. Qxe6+
{[%clk 0:02:27.3]} 15... Kh8 {[%clk 0:02:45.5]} 16. a3 {[%clk 0:02:06.8]} 16...
Bxd4+ {[%clk 0:02:34.3]} 17. Kh1 {[%clk 0:02:02.9]} 17... Nd3 {[%clk 0:02:16.8]}
18. Qxc4 {[%clk 0:01:51.8]} 18... Nf2+ {[%clk 0:01:52.9]} 19. Rxf2 {[%clk
0:01:49.7]} 19... Bxf2 {[%clk 0:01:52.9]} 20. Qc2 {[%clk 0:01:50.2]} 20... Be4
{[%clk 0:01:23.6]} 21. Qxe4 {[%clk 0:01:42.4]} 21... Qd1+ {[%clk 0:01:23.6]} 22.
Ne1 {[%clk 0:01:31.2]} 22... Qxe1+ {[%clk 0:01:23.6]} 23. Qxe1 {[%clk
0:01:30.7]} 23... Bxe1 {[%clk 0:01:24]} 24. Ba2 {[%clk 0:01:12.3]} 24... Rae8
{[%clk 0:01:18.3]} 25. g3 {[%clk 0:01:02.8]} 25... Re2 {[%clk 0:01:13.1]} 26.
Bc4 {[%clk 0:00:57.2]} 26... Re7 {[%clk 0:00:58.2]} 27. Kg2 {[%clk 0:00:44.3]}
27... Rd8 {[%clk 0:00:57.5]} 28. Bb3 {[%clk 0:00:28.6]} 28... b5 {[%clk
0:00:41.1]} 29. a4 {[%clk 0:00:25.1]} 29... b4 {[%clk 0:00:40.6]} 30. f5 {[%clk
0:00:25.2]} 30... Bd2 {[%clk 0:00:36.8]} 31. Be6 {[%clk 0:00:11.5]} 31... g6
{[%clk 0:00:22.1]} 32. g4 {[%clk 0:00:10.6]} 32... Kg7 {[%clk 0:00:21.4]} 33. b3
{[%clk 0:00:09.7]} 33... Kf6 {[%clk 0:00:19.2]} 34. Bb2+ {[%clk 0:00:08.5]}
34... Bc3 {[%clk 0:00:19.4]} 35. Bxc3+ {[%clk 0:00:06.7]} 35... bxc3 {[%clk
0:00:19.5]} 36. Rc1 {[%clk 0:00:07.6]} 36... Rd3 {[%clk 0:00:18.8]} 37. h4
{[%clk 0:00:06.3]} 37... gxf5 {[%clk 0:00:17.5]} 38. gxf5 {[%clk 0:00:05.9]}
38... c5 {[%clk 0:00:15.9]} 39. Kf2 {[%clk 0:00:06.1]} 39... Rh3 {[%clk
0:00:13.3]} 40. Kg2 {[%clk 0:00:05.2]} 40... Rd3 {[%clk 0:00:12.8]} 41. Kf2
{[%clk 0:00:05]} 41... Rg7 {[%clk 0:00:10]} 42. Ke2 {[%clk 0:00:04.8]} 42... Rh3
{[%clk 0:00:09.2]} 43. Rd1 {[%clk 0:00:02.3]} 43... Rg2+ {[%clk 0:00:09]} 44.
Kf1 {[%clk 0:00:02.1]} 44... Rh1+ {[%clk 0:00:08.6]} 45. Kxg2 {[%clk 0:00:02.5]}
45... Rxd1 {[%clk 0:00:08.9]} 0-1

[Event "Early-Titled-Tuesday-Blitz-May-07-2024"]
[Site "Chess.com"]
[Date "2024.05.07"]
[Round "6"]
[White "Pertinhez76"]
[Black "atomicmate123"]
[Result "1-0"]
[WhiteElo "2158"]
[BlackElo "2277"]
[TimeControl "180+1"]
[EndTime "9:11:46 PDT"]
[Termination "Pertinhez76 won on time"]

1. c4 {[%clk 0:03:00.3]} 1... e6 {[%clk 0:02:58.2]} 2. g3 {[%clk 0:02:57.2]}
2... d5 {[%clk 0:02:57.1]} 3. Bg2 {[%clk 0:02:57.2]} 3... Nf6 {[%clk 0:02:51.7]}
4. Nf3 {[%clk 0:02:55.9]} 4... c5 {[%clk 0:02:38.8]} 5. O-O {[%clk 0:02:49.9]}
5... d4 {[%clk 0:02:38.6]} 6. d3 {[%clk 0:02:48.5]} 6... Nc6 {[%clk 0:02:36.4]}
7. a3 {[%clk 0:02:47.7]} 7... a5 {[%clk 0:02:27.2]} 8. e3 {[%clk 0:02:46.8]}
8... e5 {[%clk 0:02:24.8]} 9. Re1 {[%clk 0:02:46.4]} 9... Be7 {[%clk 0:02:23.4]}
10. exd4 {[%clk 0:02:46.1]} 10... exd4 {[%clk 0:02:20.3]} 11. Ne5 {[%clk
0:02:27]} 11... Nxe5 {[%clk 0:02:08.6]} 12. Rxe5 {[%clk 0:02:27.9]} 12... O-O
{[%clk 0:02:03.5]} 13. Nd2 {[%clk 0:02:26.9]} 13... Bd6 {[%clk 0:01:53.8]} 14.
Re1 {[%clk 0:02:26.8]} 14... Bf5 {[%clk 0:01:52.5]} 15. Ne4 {[%clk 0:02:25.5]}
15... Nxe4 {[%clk 0:01:51]} 16. Bxe4 {[%clk 0:02:25.2]} 16... Bxe4 {[%clk
0:01:50.6]} 17. Rxe4 {[%clk 0:02:26.1]} 17... Re8 {[%clk 0:01:49.8]} 18. Qe2
{[%clk 0:02:24.3]} 18... Rxe4 {[%clk 0:01:49.1]} 19. Qxe4 {[%clk 0:02:25]} 19...
Qd7 {[%clk 0:01:49.2]} 20. Bd2 {[%clk 0:02:18.6]} 20... Re8 {[%clk 0:01:48.8]}
21. Qd5 {[%clk 0:02:15.4]} 21... Qc7 {[%clk 0:01:22.5]} 22. Re1 {[%clk
0:02:12.2]} 22... Rxe1+ {[%clk 0:01:16.8]} 23. Bxe1 {[%clk 0:02:13.1]} 23... h6
{[%clk 0:01:05.6]} 24. Kg2 {[%clk 0:02:04.5]} 24... Qb6 {[%clk 0:00:53.3]} 25.
h4 {[%clk 0:01:47.2]} 25... Be7 {[%clk 0:00:44.5]} 26. Qd7 {[%clk 0:01:28.1]}
26... Bf6 {[%clk 0:00:42.2]} 27. Qe8+ {[%clk 0:01:14.3]} 27... Kh7 {[%clk
0:00:39.5]} 28. Qxf7 {[%clk 0:01:14.8]} 28... Qxb2 {[%clk 0:00:35.1]} 29. h5
{[%clk 0:01:04.2]} 29... Qe2 {[%clk 0:00:24]} 30. Bxa5 {[%clk 0:01:03.7]} 30...
Qxd3 {[%clk 0:00:20.6]} 31. Qd5 {[%clk 0:01:00]} 31... Qc2 {[%clk 0:00:14.6]}
32. Bb6 {[%clk 0:00:53.3]} 32... Bg5 {[%clk 0:00:10.1]} 33. Bxc5 {[%clk
0:00:51.3]} 33... Be3 {[%clk 0:00:06.9]} 34. Qf3 {[%clk 0:00:45.5]} 34... Qxc4
{[%clk 0:00:05.9]} 35. Qf5+ {[%clk 0:00:39.3]} 35... Kg8 {[%clk 0:00:05.8]} 36.
fxe3 {[%clk 0:00:39.6]} 36... Qe2+ {[%clk 0:00:04.3]} 37. Qf2 {[%clk 0:00:39.6]}
37... Qc4 {[%clk 0:00:03.8]} 38. exd4 {[%clk 0:00:39.2]} 38... Qd5+ {[%clk
0:00:03.8]} 39. Qf3 {[%clk 0:00:39.8]} 39... Qa2+ {[%clk 0:00:04]} 40. Kh3
{[%clk 0:00:39.5]} 40... Qe6+ {[%clk 0:00:03.9]} 41. g4 {[%clk 0:00:40]} 41...
Qe1 {[%clk 0:00:02.6]} 42. Qxb7 {[%clk 0:00:31.9]} 42... Qe3+ {[%clk 0:00:01.9]}
43. Kg2 {[%clk 0:00:27.1]} 43... Qe2+ {[%clk 0:00:01.9]} 44. Kg3 {[%clk
0:00:27.4]} 44... Qe3+ {[%clk 0:00:00.6]} 45. Qf3 {[%clk 0:00:26.6]} 45... Qg1+
{[%clk 0:00:01.2]} 46. Kf4 {[%clk 0:00:24.9]} 46... Qc1+ {[%clk 0:00:01.7]} 47.
Ke5 {[%clk 0:00:24.6]} 47... Qc2 {[%clk 0:00:01.1]} 48. Qd5+ {[%clk 0:00:21.9]}
1-0

[Event "Early-Titled-Tuesday-Blitz-May-07-2024"]
[Site "Chess.com"]
[Date "2024.05.07"]
[Round "6"]
[White "ClauSanLuis"]
[Black "andriipalchuk"]
[Result "0-1"]
[WhiteElo "2410"]
[BlackElo "2620"]
[TimeControl "180+1"]
[EndTime "9:11:47 PDT"]
[Termination "andriipalchuk won by resignation"]

1. d4 {[%clk 0:03:00.9]} 1... Nf6 {[%clk 0:02:56]} 2. Bg5 {[%clk 0:03:00.4]}
2... d5 {[%clk 0:02:52.8]} 3. e3 {[%clk 0:02:59.4]} 3... c5 {[%clk 0:02:51.5]}
4. Nd2 {[%clk 0:02:55.1]} 4... cxd4 {[%clk 0:02:44]} 5. exd4 {[%clk 0:02:54.3]}
5... Nc6 {[%clk 0:02:44]} 6. c3 {[%clk 0:02:53.9]} 6... Bf5 {[%clk 0:02:44]} 7.
Ne2 {[%clk 0:02:41.5]} 7... e6 {[%clk 0:02:41.9]} 8. Ng3 {[%clk 0:02:41.9]} 8...
Bg6 {[%clk 0:02:40.9]} 9. Nf3 {[%clk 0:02:39.6]} 9... Bd6 {[%clk 0:02:38.6]} 10.
Bd3 {[%clk 0:02:38]} 10... Qc7 {[%clk 0:02:30.7]} 11. Bxf6 {[%clk 0:02:23.8]}
11... gxf6 {[%clk 0:02:29.4]} 12. Nh4 {[%clk 0:02:10.5]} 12... O-O-O {[%clk
0:02:22]} 13. Nh5 {[%clk 0:02:08]} 13... f5 {[%clk 0:01:32.2]} 14. g3 {[%clk
0:01:49.4]} 14... Kb8 {[%clk 0:01:27.3]} 15. Qf3 {[%clk 0:01:48.5]} 15... e5
{[%clk 0:01:04.7]} 16. Bxf5 {[%clk 0:01:35.3]} 16... e4 {[%clk 0:01:04.2]} 17.
Qe2 {[%clk 0:01:30.4]} 17... Ne7 {[%clk 0:01:01.5]} 18. Bh3 {[%clk 0:01:22.8]}
18... f5 {[%clk 0:01:00.9]} 19. O-O-O {[%clk 0:01:16.9]} 19... f4 {[%clk
0:00:55.6]} 20. gxf4 {[%clk 0:01:07.9]} 20... Bxf4+ {[%clk 0:00:51.6]} 21. Kb1
{[%clk 0:01:08.1]} 21... Bg5 {[%clk 0:00:45.4]} 22. Ng2 {[%clk 0:00:59.8]} 22...
Rhf8 {[%clk 0:00:42.5]} 23. Ka1 {[%clk 0:00:56]} 23... Qd6 {[%clk 0:00:31.4]}
24. Ng3 {[%clk 0:00:55.2]} 24... Rf7 {[%clk 0:00:28]} 25. Ne3 {[%clk 0:00:54.2]}
25... Rdf8 {[%clk 0:00:28]} 26. Rdf1 {[%clk 0:00:48.2]} 26... a6 {[%clk
0:00:26.9]} 27. Rhg1 {[%clk 0:00:47.3]} 27... Ka7 {[%clk 0:00:23.7]} 28. Bg4
{[%clk 0:00:47.5]} 28... Bf4 {[%clk 0:00:21.6]} 29. h4 {[%clk 0:00:46]} 29... h6
{[%clk 0:00:20.5]} 30. h5 {[%clk 0:00:45.3]} 30... Bh7 {[%clk 0:00:21]} 31. Rg2
{[%clk 0:00:43.5]} 31... Rg7 {[%clk 0:00:19.9]} 32. Rfg1 {[%clk 0:00:43]} 32...
Rg5 {[%clk 0:00:20.2]} 33. Bh3 {[%clk 0:00:39.5]} 33... Rfg8 {[%clk 0:00:19.3]}
34. Ngf1 {[%clk 0:00:36]} 34... Qf6 {[%clk 0:00:17.4]} 35. Ng4 {[%clk
0:00:32.5]} 35... Qf8 {[%clk 0:00:15.5]} 36. Nfe3 {[%clk 0:00:29.1]} 36... Rxh5
{[%clk 0:00:15.5]} 37. Nf6 {[%clk 0:00:17.5]} 37... Rxg2 {[%clk 0:00:14.9]} 38.
Bxg2 {[%clk 0:00:14.6]} 38... Qxf6 {[%clk 0:00:10.3]} 39. Qxh5 {[%clk
0:00:13.3]} 39... Bg5 {[%clk 0:00:10.9]} 40. Qe8 {[%clk 0:00:12.6]} 40... Qxf2
{[%clk 0:00:08.8]} 41. Rf1 {[%clk 0:00:11.4]} 41... Qxe3 {[%clk 0:00:09]} 42.
Qxe7 {[%clk 0:00:11.9]} 42... Bxe7 {[%clk 0:00:08.8]} 0-1

[Event "Early-Titled-Tuesday-Blitz-May-07-2024"]
[Site "Chess.com"]
[Date "2024.05.07"]
[Round "6"]
[White "Yerkinio"]
[Black "Zampronha1971"]
[Result "1-0"]
[WhiteElo "2663"]
[BlackElo "2456"]
[TimeControl "180+1"]
[EndTime "9:11:47 PDT"]
[Termination "Yerkinio won on time"]

1. e4 {[%clk 0:03:00.9]} 1... c5 {[%clk 0:02:59.8]} 2. Nf3 {[%clk 0:02:59.6]}
2... e6 {[%clk 0:03:00.3]} 3. d4 {[%clk 0:02:58.3]} 3... cxd4 {[%clk 0:03:01.2]}
4. Nxd4 {[%clk 0:02:58.6]} 4... Nc6 {[%clk 0:03:01.8]} 5. Nc3 {[%clk 0:02:58.9]}
5... Qc7 {[%clk 0:03:01.7]} 6. Be3 {[%clk 0:02:59.4]} 6... a6 {[%clk 0:03:01.5]}
7. Nxc6 {[%clk 0:02:59.6]} 7... bxc6 {[%clk 0:03:00.3]} 8. Qf3 {[%clk
0:02:54.3]} 8... Rb8 {[%clk 0:02:42.3]} 9. O-O-O {[%clk 0:02:53.2]} 9... Nf6
{[%clk 0:02:35.7]} 10. g4 {[%clk 0:02:09]} 10... h6 {[%clk 0:02:33.8]} 11. h4
{[%clk 0:02:08.6]} 11... Bb4 {[%clk 0:02:31.5]} 12. g5 {[%clk 0:02:04.8]} 12...
Bxc3 {[%clk 0:02:25]} 13. bxc3 {[%clk 0:02:04.4]} 13... Ng8 {[%clk 0:02:12.6]}
14. Bc5 {[%clk 0:01:45.8]} 14... d5 {[%clk 0:02:06]} 15. Qg3 {[%clk 0:01:07.5]}
15... Qxg3 {[%clk 0:02:00.9]} 16. fxg3 {[%clk 0:01:08.4]} 16... hxg5 {[%clk
0:01:55.5]} 17. Bd6 {[%clk 0:01:01.9]} 17... Ra8 {[%clk 0:01:50.5]} 18. exd5
{[%clk 0:01:01.9]} 18... cxd5 {[%clk 0:01:41.8]} 19. c4 {[%clk 0:01:02.4]} 19...
Ne7 {[%clk 0:01:14.5]} 20. cxd5 {[%clk 0:01:01.7]} 20... Nxd5 {[%clk 0:01:13.3]}
21. Bg2 {[%clk 0:01:02.3]} 21... Ra7 {[%clk 0:00:51.9]} 22. hxg5 {[%clk
0:00:57.2]} 22... Rxh1 {[%clk 0:00:51]} 23. Rxh1 {[%clk 0:00:58.1]} 23... Kd7
{[%clk 0:00:36.7]} 24. Be5 {[%clk 0:00:56.7]} 24... g6 {[%clk 0:00:32.7]} 25.
Kd2 {[%clk 0:00:45]} 25... Rb7 {[%clk 0:00:25.1]} 26. c4 {[%clk 0:00:44.6]}
26... Rb4 {[%clk 0:00:10.5]} 27. cxd5 {[%clk 0:00:44]} 27... exd5 {[%clk
0:00:11.4]} 28. Bxd5 {[%clk 0:00:41.4]} 28... Rb5 {[%clk 0:00:11.6]} 29. Bxf7
{[%clk 0:00:04.9]} 29... Rxe5 {[%clk 0:00:12.5]} 30. Bxg6 {[%clk 0:00:05.4]}
30... Rxg5 {[%clk 0:00:13.1]} 31. Bd3 {[%clk 0:00:05.1]} 31... Rxg3 {[%clk
0:00:10.3]} 32. Bf5+ {[%clk 0:00:04.7]} 32... Kc7 {[%clk 0:00:06.4]} 33. Rc1+
{[%clk 0:00:04]} 33... Kd6 {[%clk 0:00:05]} 34. Rxc8 {[%clk 0:00:02.7]} 34...
Rg2+ {[%clk 0:00:03.1]} 35. Kc3 {[%clk 0:00:03.3]} 35... Rxa2 {[%clk 0:00:02.7]}
36. Bd3 {[%clk 0:00:04]} 36... a5 {[%clk 0:00:02.1]} 37. Ra8 {[%clk 0:00:02.7]}
37... Kd7 {[%clk 0:00:03]} 38. Kb3 {[%clk 0:00:02.6]} 38... Ra3+ {[%clk
0:00:03.9]} 39. Kxa3 {[%clk 0:00:02.4]} 39... Kc7 {[%clk 0:00:02.5]} 40. Rxa5
{[%clk 0:00:03.3]} 40... Kb6 {[%clk 0:00:02.7]} 41. Ka4 {[%clk 0:00:04.2]} 1-0

[Event "Early-Titled-Tuesday-Blitz-May-07-2024"]
[Site "Chess.com"]
[Date "2024.05.07"]
[Round "6"]
[White "kidagent"]
[Black "MiguelBestard1981"]
[Result "1-0"]
[WhiteElo "2367"]
[BlackElo "2180"]
[TimeControl "180+1"]
[EndTime "9:11:50 PDT"]
[Termination "kidagent won on time"]

1. e4 {[%clk 0:03:00.9]} 1... e5 {[%clk 0:02:59.3]} 2. Nf3 {[%clk 0:03:00.6]}
2... Nf6 {[%clk 0:02:58]} 3. Nxe5 {[%clk 0:02:58.8]} 3... d6 {[%clk 0:02:58.2]}
4. Nf3 {[%clk 0:02:58.8]} 4... Nxe4 {[%clk 0:02:57.8]} 5. d4 {[%clk 0:02:59.3]}
5... d5 {[%clk 0:02:57.5]} 6. Bd3 {[%clk 0:02:57]} 6... Bd6 {[%clk 0:02:57.4]}
7. c4 {[%clk 0:02:55.3]} 7... Bb4+ {[%clk 0:02:55.3]} 8. Nbd2 {[%clk 0:02:42.9]}
8... Nxd2 {[%clk 0:02:53.8]} 9. Bxd2 {[%clk 0:02:42.6]} 9... Qe7+ {[%clk
0:02:54.5]} 10. Be2 {[%clk 0:02:33.9]} 10... dxc4 {[%clk 0:02:52.4]} 11. O-O
{[%clk 0:02:33.7]} 11... Bxd2 {[%clk 0:02:47.7]} 12. Qxd2 {[%clk 0:02:32]} 12...
O-O {[%clk 0:02:34.7]} 13. Bxc4 {[%clk 0:02:31]} 13... c6 {[%clk 0:02:31.2]} 14.
Rfe1 {[%clk 0:02:30.3]} 14... Qf6 {[%clk 0:02:30.3]} 15. Re3 {[%clk 0:02:24.2]}
15... Nd7 {[%clk 0:02:28.7]} 16. Rae1 {[%clk 0:02:23.2]} 16... Nb6 {[%clk
0:02:28.4]} 17. Bb3 {[%clk 0:02:17.5]} 17... Bd7 {[%clk 0:02:25.3]} 18. Ne5
{[%clk 0:02:15.6]} 18... Be6 {[%clk 0:02:19.6]} 19. Bc2 {[%clk 0:02:07.7]} 19...
g6 {[%clk 0:02:15.2]} 20. Rf3 {[%clk 0:02:02.4]} 20... Qg7 {[%clk 0:02:14.1]}
21. b3 {[%clk 0:02:00]} 21... Rae8 {[%clk 0:02:08.3]} 22. h3 {[%clk 0:01:51.7]}
22... f6 {[%clk 0:02:00.7]} 23. Nd3 {[%clk 0:01:49.3]} 23... Bd7 {[%clk
0:01:56.4]} 24. Rxe8 {[%clk 0:01:45.7]} 24... Rxe8 {[%clk 0:01:57.3]} 25. Nc5
{[%clk 0:01:44.5]} 25... Bc8 {[%clk 0:01:55.9]} 26. Qa5 {[%clk 0:01:34.4]} 26...
Nd5 {[%clk 0:01:35.2]} 27. Qxa7 {[%clk 0:01:30.1]} 27... Nb4 {[%clk 0:01:23.8]}
28. Bd3 {[%clk 0:01:24.3]} 28... Nxd3 {[%clk 0:01:11.8]} 29. Nxd3 {[%clk
0:01:22.2]} 29... Qe7 {[%clk 0:01:03.2]} 30. Re3 {[%clk 0:01:19.9]} 30... Qd8
{[%clk 0:01:02.7]} 31. Qc5 {[%clk 0:01:13.3]} 31... Rxe3 {[%clk 0:00:55.5]} 32.
fxe3 {[%clk 0:01:14.2]} 32... Kf7 {[%clk 0:00:51.5]} 33. Kf2 {[%clk 0:01:13.8]}
33... Qd7 {[%clk 0:00:39.2]} 34. a4 {[%clk 0:01:09.2]} 34... Qf5+ {[%clk
0:00:38.4]} 35. Qxf5 {[%clk 0:01:07.9]} 35... Bxf5 {[%clk 0:00:39.3]} 36. Nc5
{[%clk 0:01:06]} 36... b6 {[%clk 0:00:31.9]} 37. Na6 {[%clk 0:01:04.6]} 37...
Bc2 {[%clk 0:00:27.8]} 38. Nb4 {[%clk 0:01:00.5]} 38... Bxb3 {[%clk 0:00:24.7]}
39. Nxc6 {[%clk 0:01:00.6]} 39... Bxa4 {[%clk 0:00:25.2]} 40. Nb4 {[%clk
0:01:01.1]} 40... Ke6 {[%clk 0:00:20.9]} 41. e4 {[%clk 0:01:00.3]} 41... Bb3
{[%clk 0:00:17.2]} 42. Ke3 {[%clk 0:01:00.3]} 42... Kd6 {[%clk 0:00:16.9]} 43.
Kd3 {[%clk 0:00:59]} 43... Be6 {[%clk 0:00:16.5]} 44. d5 {[%clk 0:00:57.7]}
44... Bd7 {[%clk 0:00:15.6]} 45. Kd4 {[%clk 0:00:57]} 45... Ba4 {[%clk
0:00:14.6]} 46. g4 {[%clk 0:00:56]} 46... g5 {[%clk 0:00:12.8]} 47. Nd3 {[%clk
0:00:49.9]} 47... Bd1 {[%clk 0:00:10.9]} 48. e5+ {[%clk 0:00:43.5]} 48... fxe5+
{[%clk 0:00:10.2]} 49. Nxe5 {[%clk 0:00:44.1]} 49... b5 {[%clk 0:00:09.3]} 50.
Nf7+ {[%clk 0:00:43.2]} 50... Ke7 {[%clk 0:00:07.4]} 51. Nxg5 {[%clk 0:00:44.1]}
51... b4 {[%clk 0:00:06.9]} 52. Nxh7 {[%clk 0:00:42.9]} 52... b3 {[%clk
0:00:06.7]} 53. Kc3 {[%clk 0:00:43.2]} 53... Kd6 {[%clk 0:00:06.5]} 54. Nf6
{[%clk 0:00:43.2]} 54... Ke5 {[%clk 0:00:06]} 55. g5 {[%clk 0:00:43.3]} 55...
Kf5 {[%clk 0:00:04.2]} 56. h4 {[%clk 0:00:43.6]} 56... Bc2 {[%clk 0:00:00.3]}
57. d6 {[%clk 0:00:40.8]} 57... Ke6 {[%clk 0:00:00.2]} 58. d7 {[%clk 0:00:40.9]}
1-0

[Event "Early-Titled-Tuesday-Blitz-May-07-2024"]
[Site "Chess.com"]
[Date "2024.05.07"]
[Round "6"]
[White "Denisenko_Denis"]
[Black "sewlins"]
[Result "1-0"]
[WhiteElo "2388"]
[BlackElo "2194"]
[TimeControl "180+1"]
[EndTime "9:11:50 PDT"]
[Termination "Denisenko_Denis won on time"]

1. d4 {[%clk 0:03:00.9]} 1... Nf6 {[%clk 0:02:57.8]} 2. Bf4 {[%clk 0:02:59.7]}
2... e6 {[%clk 0:02:57.8]} 3. e3 {[%clk 0:02:57.9]} 3... c5 {[%clk 0:02:58.1]}
4. c3 {[%clk 0:02:57.5]} 4... Nc6 {[%clk 0:02:58]} 5. Nf3 {[%clk 0:02:57]} 5...
d5 {[%clk 0:02:58.6]} 6. Bd3 {[%clk 0:02:56.1]} 6... Nh5 {[%clk 0:02:47.2]} 7.
Bg5 {[%clk 0:02:53.1]} 7... f6 {[%clk 0:02:47.5]} 8. Bh4 {[%clk 0:02:51.9]} 8...
g6 {[%clk 0:02:45.5]} 9. O-O {[%clk 0:02:45.1]} 9... Be7 {[%clk 0:02:38.7]} 10.
Re1 {[%clk 0:02:41.2]} 10... O-O {[%clk 0:02:19.1]} 11. Nbd2 {[%clk 0:02:38.8]}
11... Ng7 {[%clk 0:02:00.5]} 12. Qe2 {[%clk 0:02:31.5]} 12... g5 {[%clk
0:02:00.5]} 13. Bg3 {[%clk 0:02:29.9]} 13... f5 {[%clk 0:02:01]} 14. Ne5 {[%clk
0:02:28.2]} 14... f4 {[%clk 0:01:56.9]} 15. exf4 {[%clk 0:02:22.6]} 15... gxf4
{[%clk 0:01:57.8]} 16. Qg4 {[%clk 0:01:34.7]} 16... fxg3 {[%clk 0:01:40.3]} 17.
hxg3 {[%clk 0:01:33.4]} 17... Bf6 {[%clk 0:01:26]} 18. Ndf3 {[%clk 0:01:31.2]}
18... Qe8 {[%clk 0:01:13.9]} 19. Qh3 {[%clk 0:01:27.4]} 19... Qh5 {[%clk
0:01:13.4]} 20. Nxc6 {[%clk 0:01:15.5]} 20... bxc6 {[%clk 0:01:13.6]} 21. dxc5
{[%clk 0:01:15.3]} 21... Qxh3 {[%clk 0:01:04.3]} 22. gxh3 {[%clk 0:01:16.2]}
22... Bxc3 {[%clk 0:01:01.9]} 23. bxc3 {[%clk 0:01:14]} 23... Rxf3 {[%clk
0:01:02]} 24. Rad1 {[%clk 0:01:13.8]} 24... Rb8 {[%clk 0:00:59.4]} 25. Kg2
{[%clk 0:01:13.1]} 25... Rf8 {[%clk 0:00:57.1]} 26. Re5 {[%clk 0:01:10.6]} 26...
Bd7 {[%clk 0:00:55.8]} 27. h4 {[%clk 0:01:08.3]} 27... Rb2 {[%clk 0:00:56.1]}
28. Rf1 {[%clk 0:01:05.3]} 28... Rxa2 {[%clk 0:00:55.8]} 29. g4 {[%clk
0:01:04.9]} 29... Ra3 {[%clk 0:00:47.3]} 30. f4 {[%clk 0:01:00.2]} 30... Rxc3
{[%clk 0:00:47.1]} 31. Rf3 {[%clk 0:01:00.1]} 31... Rxc5 {[%clk 0:00:46.1]} 32.
h5 {[%clk 0:00:59.7]} 32... h6 {[%clk 0:00:44.8]} 33. g5 {[%clk 0:00:56.7]}
33... Nxh5 {[%clk 0:00:44.9]} 34. gxh6 {[%clk 0:00:55.8]} 34... Nxf4+ {[%clk
0:00:45]} 35. Kh2 {[%clk 0:00:54.5]} 35... Ra5 {[%clk 0:00:15.9]} 36. Rg5+
{[%clk 0:00:53.4]} 36... Kh8 {[%clk 0:00:16.3]} 37. h7 {[%clk 0:00:51.8]} 37...
e5 {[%clk 0:00:15.9]} 38. Rfg3 {[%clk 0:00:47.5]} 38... Be6 {[%clk 0:00:14.5]}
39. Bf5 {[%clk 0:00:46.3]} 39... Bf7 {[%clk 0:00:12.2]} 40. Rg7 {[%clk
0:00:43.8]} 40... Nh5 {[%clk 0:00:09]} 41. Rxf7 {[%clk 0:00:42.1]} 41... Rd8
{[%clk 0:00:02.7]} 42. Rg5 {[%clk 0:00:40.1]} 42... Ra2+ {[%clk 0:00:02.2]} 43.
Kg1 {[%clk 0:00:36.9]} 43... Ra1+ {[%clk 0:00:01.8]} 44. Kf2 {[%clk 0:00:36.7]}
44... Ra2+ {[%clk 0:00:02.3]} 45. Ke1 {[%clk 0:00:36.6]} 45... Ra1+ {[%clk
0:00:02.3]} 46. Kd2 {[%clk 0:00:36.3]} 46... Nf4 {[%clk 0:00:03]} 47. Rfg7
{[%clk 0:00:32]} 47... Ra2+ {[%clk 0:00:01.1]} 48. Kc3 {[%clk 0:00:31.7]} 48...
Ra3+ {[%clk 0:00:00.6]} 49. Kb4 {[%clk 0:00:31.3]} 1-0